Workbook

Sheet Informações de funcionários
A2: Informações de funcionários
A3: [Nome da empresa]
A4: ID do funcionário | B4: Nome do Funcionário | C4: Salário por hora | D4: Situação fiscal | E4: Subsídio federal (de W-4) | F4: Imposto estadual | G4: Imposto de Renda (Baseado no Subsídio Federal) | H4: Imposto da previdência social | I4: Imposto de plano de saúde | J4: Impostos Retidos Totais | K4: Dedução de seguro | L4: Outras deduções regulares | M4: Deduções Regulares Totais (sem impostos)
A5: 1 | B5: Jesper Aaberg | C5: R$ 10.00 | D5: 1 | E5: 4 | F5: 2.30% | G5: 28.00% | H5: 6.30% | I5: 1.45% | J5: =Tabela1[[#This Row],[Imposto estadual]]+Tabela1[[#This Row],[Imposto de Renda (Baseado no Subsídio Federal)]]+Tabela1[[#This Row],[Imposto da previdência social]]+Tabela1[[#This Row],[Imposto de plano de saúde]] -> 38.05% | K5: R$ 20.00 | L5: R$ 40.00 | M5: =Tabela1[[#This Row],[Dedução de seguro]]+Tabela1[[#This Row],[Outras deduções regulares]] -> R$ 60.00
A6: 2 | B6: Wilson Pais | C6: R$ 13.00 | D6: 1 | E6: 4 | F6: 2.30% | G6: 28.00% | H6: 6.30% | I6: 1.45% | J6: =Tabela1[[#This Row],[Imposto estadual]]+Tabela1[[#This Row],[Imposto de Renda (Baseado no Subsídio Federal)]]+Tabela1[[#This Row],[Imposto da previdência social]]+Tabela1[[#This Row],[Imposto de plano de saúde]] -> 38.05% | K6: R$ 20.00 | L6: R$ 52.00 | M6: =Tabela1[[#This Row],[Dedução de seguro]]+Tabela1[[#This Row],[Outras deduções regulares]] -> R$ 72.00
A7: 3 | B7: Kathie Flood | C7: R$ 10.00 | D7: 1 | E7: 4 | F7: 2.30% | G7: 28.00% | H7: 6.30% | I7: 1.45% | J7: =Tabela1[[#This Row],[Imposto estadual]]+Tabela1[[#This Row],[Imposto de Renda (Baseado no Subsídio Federal)]]+Tabela1[[#This Row],[Imposto da previdência social]]+Tabela1[[#This Row],[Imposto de plano de saúde]] -> 38.05% | K7: R$ 20.00 | L7: 0 | M7: =Tabela1[[#This Row],[Dedução de seguro]]+Tabela1[[#This Row],[Outras deduções regulares]] -> R$ 20.00

Sheet Calculadora de folhas de pag...
A1: Calculadora de folhas de pagamento
J2: Final do período: | K2: 4568800.00%
A3: ='Informações de funcionários'!$A$3 -> [Nome da empresa]
A4: ID do funcionário | B4: Nome do Funcionário | C4: Horas normais trabalhadas | D4: Horas de férias | E4: Horas de licença médica | F4: Horas Extras | G4: Relação de horas extras | H4: Pagamento bruto | I4: Impostos e Deduções | J4: Outras deduções | K4: Pagamento líquido
A5: 1 | B5: =VLOOKUP(A5,Tabela1[],2,FALSE) -> Jesper Aaberg | C5: 50.00 | D5: 5.00 | E5: 1.00 | H5: =(VLOOKUP(A5,Tabela1[],3,FALSE)*(Tabela2[[#This Row],[Horas normais trabalhadas]]+Tabela2[[#This Row],[Horas de férias]]+Tabela2[[#This Row],[Horas de licença médica]])+Tabela2[[#This Row],[Horas Extras]]*Tabela2[[#This Row],[Relação de horas extras]]) -> R$ 560.00 | I5: =VLOOKUP(A5,Tabela1[],10,FALSE)*Tabela2[[#This Row],[Pagamento bruto]]+Tabela1[[#This Row],[Deduções Regulares Totais (sem impostos)]] -> R$ 273.08 | J5: R$ 20.00 | K5: =Tabela2[[#This Row],[Pagamento bruto]]-Tabela2[[#This Row],[Impostos e Deduções ]]-Tabela2[[#This Row],[Outras deduções]] -> R$ 266.92
A6: 2 | B6: =VLOOKUP(A6,Tabela1[],2,FALSE) -> Wilson Pais | C6: 40.00 | D6: 0.00 | E6: 0.00 | H6: =(VLOOKUP(A6,Tabela1[],3,FALSE)*(Tabela2[[#This Row],[Horas normais trabalhadas]]+Tabela2[[#This Row],[Horas de férias]]+Tabela2[[#This Row],[Horas de licença médica]])+Tabela2[[#This Row],[Horas Extras]]*Tabela2[[#This Row],[Relação de horas extras]]) -> R$ 520.00 | I6: =VLOOKUP(A6,Tabela1[],10,FALSE)*Tabela2[[#This Row],[Pagamento bruto]]+Tabela1[[#This Row],[Deduções Regulares Totais (sem impostos)]] -> R$ 269.86 | J6: R$ 52.00 | K6: =Tabela2[[#This Row],[Pagamento bruto]]-Tabela2[[#This Row],[Impostos e Deduções ]]-Tabela2[[#This Row],[Outras deduções]] -> R$ 198.14
A7: 3 | B7: =VLOOKUP(A7,Tabela1[],2,FALSE) -> Kathie Flood | C7: 52.00 | D7: 0.00 | E7: 0.00 | F7: 2.00 | G7: R$ 20.00 | H7: =(VLOOKUP(A7,Tabela1[],3,FALSE)*(Tabela2[[#This Row],[Horas normais trabalhadas]]+Tabela2[[#This Row],[Horas de férias]]+Tabela2[[#This Row],[Horas de licença médica]])+Tabela2[[#This Row],[Horas Extras]]*Tabela2[[#This Row],[Relação de horas extras]]) -> R$ 560.00 | I7: =VLOOKUP(A7,Tabela1[],10,FALSE)*Tabela2[[#This Row],[Pagamento bruto]]+Tabela1[[#This Row],[Deduções Regulares Totais (sem impostos)]] -> R$ 233.08 | J7: R$ 20.00 | K7: =Tabela2[[#This Row],[Pagamento bruto]]-Tabela2[[#This Row],[Impostos e Deduções ]]-Tabela2[[#This Row],[Outras deduções]] -> R$ 306.92

Sheet Contra-cheques individuais
C2: =('Informações de funcionários'!$A$3) -> [Nome da empresa]
C3: Período: | D3: ='Calculadora de folhas de pag...'!$K$2 -> 4568800.00% | E3: Nome do funcionário | F3: =IFERROR(VLOOKUP(H3,Tabela1[],2),"") -> Jesper Aaberg | G3: ID do funcionário | H3: 1
C5: Situação fiscal | D5: =IFERROR(VLOOKUP(H3,Tabela1[],4),"") -> 1 | E5: Subsídio federal (de W-4) | F5: =IFERROR(VLOOKUP(H3,Tabela1[],5,FALSE),"") -> 4 | G5: Horas trabalhadas | H5: =IFERROR(VLOOKUP(H3,Tabela2[],3,FALSE),"") -> 50
C6: Taxa por hora | D6: =IFERROR(VLOOKUP(H3,Tabela1[],3,FALSE),"") -> R$ 10.00 | E6: Relação de horas extras | F6: =IFERROR(VLOOKUP(H3,Tabela2[],7,FALSE),"") -> 0 | G6: Horas de licença médica | H6: =IFERROR(VLOOKUP(H3,Tabela2[],5,FALSE),"") -> 1
C7: Imposto da previdência social | D7: =IFERROR(IFERROR(VLOOKUP(H3,Tabela1[],8,FALSE),"")*H9,"") -> R$ 35.28 | E7: Imposto de renda | F7: =IFERROR(IFERROR(VLOOKUP(H3,Tabela1[],7,FALSE),"")*H9,"") -> R$ 156.80 | G7: Horas de férias | H7: =IFERROR(VLOOKUP(H3,Tabela2[],4,FALSE),"") -> 5
C8: Imposto de plano de saúde | D8: =IFERROR(IFERROR(VLOOKUP(H3,Tabela1[],9,FALSE),"")*H9,"") -> R$ 8.12 | E8: Imposto estadual | F8: =IFERROR(IFERROR(VLOOKUP(H3,Tabela1[],6,FALSE),"")*H9,"") -> R$ 12.88 | G8: Horas extras | H8: =IFERROR(VLOOKUP(H3,Tabela2[],6,FALSE),"") -> 0
C9: Dedução de seguro | D9: =IFERROR(VLOOKUP(H3,Tabela1[],11,FALSE),"") -> R$ 20.00 | E9: Outras deduções regulares | F9: =IFERROR(VLOOKUP(H3,Tabela1[],12,FALSE),"") -> R$ 40.00 | G9: Pagamento bruto | H9: =IFERROR(VLOOKUP(H3,Tabela2[],8,FALSE),"") -> R$ 560.00
C10: Total de impostos e deduções regulares | D10: =IFERROR(SUM(F7:F9)+SUM(D7:D9),"") -> R$ 273.08 | E10: Outras deduções | F10: =IFERROR(VLOOKUP(H3,Tabela2[],10,FALSE),"") -> R$ 20.00 | G10: Total de impostos e deduções | H10: =IFERROR(IFERROR(VLOOKUP(H3,Tabela2[],9,FALSE),"")+F10,"") -> R$ 293.08
G11: Pagamento líquido | H11: =IFERROR(VLOOKUP(H3,Tabela2[],11,FALSE),"") -> R$ 266.92
C14: =('Informações de funcionários'!$A$3) -> [Nome da empresa]
C15: Período: | D15: ='Calculadora de folhas de pag...'!$K$2 -> 4568800.00% | E15: Nome do funcionário | F15: =IFERROR(VLOOKUP(H15,Tabela1[],2),"") -> Wilson Pais | G15: ID do funcionário | H15: 2
C17: Situação fiscal | D17: =IFERROR(VLOOKUP(H15,Tabela1[],4),"") -> 1 | E17: Subsídio federal (de W-4) | F17: =IFERROR(VLOOKUP(H15,Tabela1[],5,FALSE),"") -> 4 | G17: Horas trabalhadas | H17: =IFERROR(VLOOKUP(H15,Tabela2[],3,FALSE),"") -> 40
C18: Taxa por hora | D18: =IFERROR(VLOOKUP(H15,Tabela1[],3,FALSE),"") -> R$ 13.00 | E18: Relação de horas extras | F18: =IFERROR(VLOOKUP(H15,Tabela2[],7,FALSE),"") -> 0 | G18: Horas de licença médica | H18: =IFERROR(VLOOKUP(H15,Tabela2[],5,FALSE),"") -> 0
C19: Imposto da previdência social | D19: =IFERROR(IFERROR(VLOOKUP(H15,Tabela1[],8,FALSE),"")*H21,"") -> R$ 32.76 | E19: Imposto de renda | F19: =IFERROR(IFERROR(VLOOKUP(H15,Tabela1[],7,FALSE),"")*H21,"") -> R$ 145.60 | G19: Horas de férias | H19: =IFERROR(VLOOKUP(H15,Tabela2[],4,FALSE),"") -> 0
C20: Imposto de plano de saúde | D20: =IFERROR(IFERROR(VLOOKUP(H15,Tabela1[],9,FALSE),"")*H21,"") -> R$ 7.54 | E20: Imposto estadual | F20: =IFERROR(IFERROR(VLOOKUP(H15,Tabela1[],6,FALSE),"")*H21,"") -> R$ 11.96 | G20: Horas extras | H20: =IFERROR(VLOOKUP(H15,Tabela2[],6,FALSE),"") -> 0
C21: Dedução de seguro | D21: =IFERROR(VLOOKUP(H15,Tabela1[],11,FALSE),"") -> R$ 20.00 | E21: Outras deduções regulares | F21: =IFERROR(VLOOKUP(H15,Tabela1[],12,FALSE),"") -> R$ 52.00 | G21: Pagamento bruto | H21: =IFERROR(VLOOKUP(H15,Tabela2[],8,FALSE),"") -> R$ 520.00
C22: Total de impostos e deduções regulares | D22: =IFERROR(SUM(F19:F21)+SUM(D19:D21),"") -> R$ 269.86 | E22: Outras deduções | F22: =IFERROR(VLOOKUP(H15,Tabela2[],10,FALSE),"") -> R$ 52.00 | G22: Total de impostos e deduções | H22: =IFERROR(IFERROR(VLOOKUP(H15,Tabela2[],9,FALSE),"")+F22,"") -> R$ 321.86
G23: Pagamento líquido | H23: =IFERROR(VLOOKUP(H15,Tabela2[],11,FALSE),"") -> R$ 198.14
C26: =('Informações de funcionários'!$A$3) -> [Nome da empresa]
C27: Período: | D27: ='Calculadora de folhas de pag...'!$K$2 -> 4568800.00% | E27: Nome do funcionário | F27: =IFERROR(VLOOKUP(H27,Tabela1[],2),"") -> Kathie Flood | G27: ID do funcionário | H27: 3
C29: Situação fiscal | D29: =IFERROR(VLOOKUP(H27,Tabela1[],4),"") -> 1 | E29: Subsídio federal (de W-4) | F29: =IFERROR(VLOOKUP(H27,Tabela1[],5,FALSE),"") -> 4 | G29: Horas trabalhadas | H29: =IFERROR(VLOOKUP(H27,Tabela2[],3,FALSE),"") -> 52
C30: Taxa por hora | D30: =IFERROR(VLOOKUP(H27,Tabela1[],3,FALSE),"") -> R$ 10.00 | E30: Relação de horas extras | F30: =IFERROR(VLOOKUP(H27,Tabela2[],7,FALSE),"") -> R$ 20.00 | G30: Horas de licença médica | H30: =IFERROR(VLOOKUP(H27,Tabela2[],5,FALSE),"") -> 0
C31: Imposto da previdência social | D31: =IFERROR(IFERROR(VLOOKUP(H27,Tabela1[],8,FALSE),"")*H33,"") -> R$ 35.28 | E31: Imposto de renda | F31: =IFERROR(IFERROR(VLOOKUP(H27,Tabela1[],7,FALSE),"")*H33,"") -> R$ 156.80 | G31: Horas de férias | H31: =IFERROR(VLOOKUP(H27,Tabela2[],4,FALSE),"") -> 0
C32: Imposto de plano de saúde | D32: =IFERROR(IFERROR(VLOOKUP(H27,Tabela1[],9,FALSE),"")*H33,"") -> R$ 8.12 | E32: Imposto estadual | F32: =IFERROR(IFERROR(VLOOKUP(H27,Tabela1[],6,FALSE),"")*H33,"") -> R$ 12.88 | G32: Horas extras | H32: =IFERROR(VLOOKUP(H27,Tabela2[],6,FALSE),"") -> 2
C33: Dedução de seguro | D33: =IFERROR(VLOOKUP(H27,Tabela1[],11,FALSE),"") -> R$ 20.00 | E33: Outras deduções regulares | F33: =IFERROR(VLOOKUP(H27,Tabela1[],12,FALSE),"") -> 0 | G33: Pagamento bruto | H33: =IFERROR(VLOOKUP(H27,Tabela2[],8,FALSE),"") -> R$ 560.00
C34: Total de impostos e deduções regulares | D34: =IFERROR(SUM(F31:F33)+SUM(D31:D33),"") -> R$ 233.08 | E34: Outras deduções | F34: =IFERROR(VLOOKUP(H27,Tabela2[],10,FALSE),"") -> R$ 20.00 | G34: Total de impostos e deduções | H34: =IFERROR(IFERROR(VLOOKUP(H27,Tabela2[],9,FALSE),"")+F34,"") -> R$ 253.08
G35: Pagamento líquido | H35: =IFERROR(VLOOKUP(H27,Tabela2[],11,FALSE),"") -> R$ 306.92
C39: =('Informações de funcionários'!$A$3) -> [Nome da empresa]
C40: Período: | D40: ='Calculadora de folhas de pag...'!$K$2 -> 4568800.00% | E40: Nome do funcionário | F40: =IFERROR(VLOOKUP(H40,Tabela1[],2),"") ->  | G40: ID do funcionário
C42: Situação fiscal | D42: =IFERROR(VLOOKUP(H40,Tabela1[],4),"") ->  | E42: Subsídio federal (de W-4) | F42: =IFERROR(VLOOKUP(H40,Tabela1[],5,FALSE),"") ->  | G42: Horas trabalhadas | H42: =IFERROR(VLOOKUP(H40,Tabela2[],3,FALSE),"") -> 
C43: Taxa por hora | D43: =IFERROR(VLOOKUP(H40,Tabela1[],3,FALSE),"") ->  | E43: Relação de horas extras | F43: =IFERROR(VLOOKUP(H40,Tabela2[],7,FALSE),"") ->  | G43: Horas de licença médica | H43: =IFERROR(VLOOKUP(H40,Tabela2[],5,FALSE),"") -> 
C44: Imposto da previdência social | D44: =IFERROR(IFERROR(VLOOKUP(H40,Tabela1[],8,FALSE),"")*H46,"") ->  | E44: Imposto de renda | F44: =IFERROR(IFERROR(VLOOKUP(H40,Tabela1[],7,FALSE),"")*H46,"") ->  | G44: Horas de férias | H44: =IFERROR(VLOOKUP(H40,Tabela2[],4,FALSE),"") -> 
C45: Imposto de plano de saúde | D45: =IFERROR(IFERROR(VLOOKUP(H40,Tabela1[],9,FALSE),"")*H46,"") ->  | E45: Imposto estadual | F45: =IFERROR(IFERROR(VLOOKUP(H40,Tabela1[],6,FALSE),"")*H46,"") ->  | G45: Horas extras | H45: =IFERROR(VLOOKUP(H40,Tabela2[],6,FALSE),"") -> 
C46: Dedução de seguro | D46: =IFERROR(VLOOKUP(H40,Tabela1[],11,FALSE),"") ->  | E46: Outras deduções regulares | F46: =IFERROR(VLOOKUP(H40,Tabela1[],12,FALSE),"") ->  | G46: Pagamento bruto | H46: =IFERROR(VLOOKUP(H40,Tabela2[],8,FALSE),"") -> 
C47: Total de impostos e deduções regulares | D47: =IFERROR(SUM(F44:F46)+SUM(D44:D46),"") -> 0 | E47: Outras deduções | F47: =IFERROR(VLOOKUP(H40,Tabela2[],10,FALSE),"") ->  | G47: Total de impostos e deduções | H47: =IFERROR(IFERROR(VLOOKUP(H40,Tabela2[],9,FALSE),"")+F47,"") -> 
G48: Pagamento líquido | H48: =IFERROR(VLOOKUP(H40,Tabela2[],11,FALSE),"") -> 
